bitfinex-derivatives/quotes_SOLF0:USTF0_20260104
["timestamp","ask_amount","ask_price","bid_price","bid_amount"]
[1767526961207,5.83056693,134.49,134.43,0.44783376]
[1767526961401,0.23770503,134.49,134.43,0.44783376]
[1767526961802,0.2375476,134.53,134.43,0.44783376]
[1767526962004,0.2375476,134.51,134.45,0.0551833]
[1767526962204,0.05258848,134.49,134.44,0.44783376]
[1767526962401,0.05258848,134.49,134.47,0.05229381]
[1767526979331,0.23511738,134.53,134.47,0.50012757]
[1767526979726,0.23511738,134.53,134.47,0.44783376]
[1767526980732,0.23511738,134.53,134.49,0.04882074]
[1767526981824,0.05579605,134.52,134.49,0.04882074]
[1767526983935,0.05579605,134.52,134.49,0.48109573]
[1767526988733,0.28938925,134.57,134.49,0.48109573]
[1767526989129,0.28938925,134.57,134.49,0.43227499]
[1767526989937,0.05415236,134.54,134.49,0.43227499]
[1767526990833,0.34357078,134.54,134.49,0.43227499]
[1767526991035,0.34357078,134.54,134.5,0.04746028]
[1767526994745,0.34357078,134.54,134.47,0.43227499]
[1767526995945,0.34357078,134.54,134.49,0.04869037]
[1767526998542,0.34357078,134.54,134.49,0.48096536]
[1767527012962,0.34357078,134.54,134.49,0.04869037]
[1767527021058,5.58041667,134.53,134.49,0.04869037]
[1767527021264,0.28964513,134.53,134.49,0.04869037]
[1767527025767,0.05415236,134.54,134.49,0.48783166]
[1767527035780,0.34226445,134.54,134.49,0.04869037]
[1767527037880,0.34226445,134.54,134.43,13.87097232]
[1767527038082,0.28811209,134.54,134.43,13.87097232]
[1767527038994,0.28811209,134.54,134.47,0.05143933]
[1767527039880,0.28811209,134.54,134.47,0.49058062]
[1767527048606,0.28811209,134.54,134.47,0.05143933]
[1767527049194,0.48651749,134.52,134.47,0.05143933]
[1767527049506,0.48651749,134.52,134.45,0.43702124]
[1767527051810,0.48651749,134.52,134.47,0.05224284]
[1767527087442,0.48651749,134.52,134.47,0.47492474]
[1767527090746,0.48651749,134.52,134.47,0.05224284]
[1767527103157,0.48651749,134.52,134.43,0.44746799]
[1767527103350,0.42269712,134.49,134.43,0.44746799]
[1767527103549,0.42269712,134.46,134.4,0.44746799]
[1767527104553,0.05719632,134.44,134.4,0.44746799]
[1767527105453,0.42269712,134.48,134.41,0.44746799]
[1767527106661,0.04880442,134.46,134.41,0.44746799]
[1767527108150,0.04880442,134.46,134.42,0.05495843]
[1767527110552,0.04880442,134.46,134.42,0.50242642]
[1767527110757,0.42269712,134.48,134.42,0.50242642]
[1767527112462,0.42269712,134.52,134.42,0.50242642]
[1767527112865,0.42269712,134.52,134.42,0.44746799]
[1767527113071,0.42269712,134.52,134.46,0.04957658]
[1767527113267,0.04982735,134.48,134.46,0.04957658]
[1767527113468,0.42269712,134.5,134.44,0.44746799]
[1767527113770,0.42269712,134.5,134.45,0.04694275]
[1767527113964,0.05233149,134.48,134.45,0.04694275]
[1767527119876,0.42269712,134.52,134.45,0.49441074]
[1767527120072,0.42269712,134.52,134.45,0.44746799]
[1767527121075,0.05220703,134.5,134.47,0.05157756]
[1767527140798,0.05220703,134.5,134.47,0.48935499]
[1767527143295,0.47152911,134.54,134.47,0.48935499]
[1767527153009,0.05712053,134.52,134.47,0.48935499]
[1767527153512,0.52864964,134.52,134.47,0.48935499]
[1767527156212,0.52864964,134.52,134.47,0.05157756]
[1767527158218,0.52864964,134.52,134.47,0.48935499]
[1767527166931,0.05712053,134.52,134.47,0.48935499]
[1767527169226,0.51667179,134.52,134.47,0.48935499]
[1767527170820,0.51667179,134.52,134.47,0.05157756]
[1767527197036,0.45847054,134.49,134.41,0.45064834]
[1767527197230,0.45847054,134.46,134.41,0.45064834]
[1767527198338,0.45847054,134.46,134.42,0.05164006]
[1767527205550,999.4977116,134.41,134.36,13.87097232]
[1767527205749,998.57313974,134.41,134.36,13.87097232]
[1767527206745,998.11085381,134.41,134.37,0.05386042]
[1767527207551,980.64253446,134.41,134.37,0.05386042]
[1767527208050,0.05009683,134.4,134.37,0.05386042]
[1767527208444,980.64253446,134.41,134.37,0.05386042]
[1767527208646,980.64253446,134.41,134.37,1.53386042]
[1767527209845,980.64253446,134.41,134.37,0.05386042]
[1767527214653,980.64253446,134.41,134.37,1.53386042]
[1767527221061,963.77676242,134.41,134.37,15.40483274]
[1767527221365,963.77676242,134.41,134.39,13.87097232]
[1767527221658,963.77676242,134.41,134.4,13.87097232]
[1767527221859,963.77676242,134.41,134.4,80.02]
[1767527226362,0.05182602,134.42,134.34,1.29411327]
[1767527226562,22.3,134.43,134.34,81.33411327]
[1767527226758,22.3,134.43,134.34,248.51333985]
[1767527227362,22.740299,134.43,134.34,247.03333985]
[1767527227568,22.740299,134.43,134.34,166.99333985]
[1767527228968,0.04695572,134.4,134.34,166.99333985]
[1767527231770,0.04695572,134.4,134.34,168.47333985]
[1767527234372,0.04695572,134.4,134.34,166.99333985]
[1767527235471,0.04695572,134.4,134.34,168.47333985]
[1767527236674,0.04695572,134.4,134.34,166.99333985]
[1767527246370,0.04695572,134.4,134.36,13.91024942]
[1767527246561,0.48725472,134.4,134.35,13.91024942]
[1767527246964,0.48725472,134.4,134.34,178.55226784]
[1767527247464,0.48725472,134.4,134.34,192.46251726]
[1767527250379,0.48725472,134.4,134.34,178.55226784]
[1767527250569,0.48725472,134.4,134.34,192.46251726]
[1767527252380,0.48725472,134.4,134.34,178.55226784]
[1767527255375,0.48725472,134.4,134.34,177.25815457]
[1767527266683,122.74184543,134.34,134.32,13.91024942]
[1767527266886,113.43725004,134.34,134.32,13.91024942]
[1767527267088,113.49260848,134.34,134.32,13.91024942]
[1767527270396,113.49260848,134.34,134.33,13.91024942]
[1767527272892,113.49260848,134.34,134.32,13.96428854]
[1767527276804,104.18757271,134.34,134.32,13.96428854]
[1767527281403,104.18757271,134.34,134.33,13.91024942]
[1767527282205,28.1311732,134.34,134.32,0.05403912]
[1767527282412,15.10596512,134.34,134.32,1.53403912]
[1767527283008,31.14,134.38,134.32,1.53403912]
[1767527283309,57.44,134.39,134.32,0.05403912]
[1767527284308,0.05330609,134.37,134.32,0.05403912]
[1767527286811,0.00382554,134.37,134.32,0.05403912]
[1767527288119,0.90188358,134.37,134.32,0.05403912]
[1767527291633,0.90188358,134.37,134.3,109.87519405]
[1767527292433,0.90188358,134.37,134.31,1.29526929]
[1767527293222,0.00382554,134.37,134.31,1.29526929]
[1767527295937,0.00382554,134.37,134.31,19.85456598]
[1767527297035,0.03620274,134.39,134.31,19.85456598]
[1767527298140,0.05265544,134.36,134.31,19.85456598]
[1767527298737,0.00831529,134.36,134.31,19.85456598]
[1767527301041,0.00831529,134.36,134.32,0.05119446]
[1767527306847,0.89805804,134.4,134.32,0.05119446]
[1767527307047,0.89805804,134.4,134.32,18.61049115]
[1767527307249,0.89805804,134.4,134.32,0.05119446]
[1767527307847,0.05484715,134.37,134.32,0.05119446]
[1767527308949,0.05484715,134.37,134.32,18.61049115]
[1767527314048,0.05484715,134.37,134.32,0.05119446]
[1767527315853,1.16180509,134.37,134.32,0.05119446]
[1767527316952,0.05034818,134.37,134.32,0.05119446]
[1767527318054,0.05388767,134.36,134.32,0.05119446]
[1767527324159,1.10695794,134.39,134.32,0.05119446]
[1767527326152,22.35,134.52,134.33,18.55929669]
[1767527326153,0.05090397,134.37,134.33,18.55929669]
[1767527326359,1.10695794,134.41,134.33,18.55929669]
[1767527327460,0.05083395,134.41,134.36,0.05689864]
[1767527333664,1.10695794,134.4,134.31,42.19456598]
[1767527334864,0.05489836,134.37,134.34,0.05115688]
[1767527335066,1.10695794,134.39,134.31,42.19456598]
[1767527335368,0.0485211,134.37,134.34,0.0523973]
[1767527337566,0.04715783,134.39,134.34,0.0523973]
[1767527342571,1.16976945,134.47,134.34,0.0523973]
[1767527342765,1.16976945,134.47,134.33,18.55929669]
[1767527344171,1.16976945,134.4,134.33,18.55929669]
[1767527345362,0.05218195,134.38,134.33,18.55929669]
[1767527345569,1.2219514,134.38,134.35,0.05123389]
[1767527347462,0.05311043,134.38,134.35,0.05123389]
[1767527348777,0.05311043,134.38,134.31,19.85456598]
[1767527349077,0.05311043,134.38,134.31,1.29526929]
[1767527349977,0.05559471,134.36,134.31,1.29526929]
[1767527352974,1.22536416,134.36,134.31,1.29526929]
[1767527355589,1.22536416,134.36,134.32,0.05431327]
[1767527357487,0.05572048,134.36,134.32,0.05431327]
[1767527383612,0.00262528,134.36,134.32,0.05431327]
[1767527393627,70.84,134.41,134.32,0.05431327]
[1767527394017,70.84,134.41,134.31,2.57462122]
[1767527395628,1.29269694,134.4,134.31,2.57462122]
[1767527398621,1.29269694,134.4,134.31,1.29526929]
[1767527402926,1.29269694,134.4,134.3,12.6882959]
[1767527404824,1.29269694,134.4,134.3,1.40152055]
[1767527405419,1.29269694,134.4,134.28,2.76831805]
[1767527407227,1.29269694,134.4,134.29,1.47295233]
[1767527429151,1.48254045,134.39,134.26,1.47295233]
[1767527439162,1.62248284,134.37,134.26,1.47295233]
[1767527449468,0.05577735,134.33,134.3,0.05015154]
[1767527449668,71.56,134.32,134.3,0.05015154]
[1767527449874,71.56,134.32,134.28,1.60799399]
[1767527450073,71.56,134.32,134.3,0.05246531]
[1767527450776,71.61213078,134.32,134.3,0.05246531]
[1767527451177,71.61213078,134.32,134.28,1.60799399]
[1767527455177,71.61213078,134.32,134.29,0.05030546]
[1767527468287,73.30688121,134.32,134.29,0.05030546]
[1767527468489,73.30688121,134.32,134.25,140.48870553]
[1767527468991,73.30688121,134.32,134.25,1.72199977]
[1767527470487,73.30688121,134.32,134.27,0.05099022]
[1767527471191,73.30688121,134.32,134.27,1.77298999]
[1767527481299,73.30688121,134.32,134.27,0.05099022]
[1767527481500,1.69475043,134.31,134.27,0.05099022]
[1767527481706,0.07234886,134.31,134.27,0.05099022]
[1767527492615,0.07234886,134.31,134.24,1.72199977]
[1767527492906,0.07234886,134.31,134.22,1.68935423]
[1767527493696,0.04882388,134.28,134.22,1.68935423]
[1767527496712,1.83959979,134.28,134.22,1.68935423]
[1767527497912,1.83959979,134.28,134.24,0.04947403]
[1767527500212,1.83959979,134.28,134.2,1.69111628]
[1767527500614,1.79077591,134.28,134.2,1.69111628]
[1767527501513,0.05493628,134.25,134.23,0.04733922]
[1767527507319,1.79077591,134.29,134.23,1.7384555]
[1767527507514,1.79077591,134.29,134.23,1.69111628]
[1767527508529,0.05212754,134.27,134.23,1.69111628]
[1767527509229,0.05212754,134.27,134.24,0.05348719]
[1767527509928,1.84290345,134.27,134.24,0.05348719]
[1767527510930,1.84290345,134.27,134.21,1.69111628]
[1767527513339,1.84290345,134.27,134.23,0.05655892]
[1767527513634,1.84290345,134.27,134.21,1.69111628]
[1767527521041,1.84290345,134.27,134.17,1.73789]
[1767527521342,1.79077591,134.27,134.17,1.73789]
[1767527521543,0.0535256,134.23,134.17,1.73789]
[1767527521845,1.81722014,134.25,134.17,1.73789]
[1767527522039,0.05297512,134.21,134.17,1.73789]
[1767527522246,0.00144955,134.21,134.2,0.04998698]
[1767527522546,0.00144955,134.21,134.18,1.73789]
[1767527526554,0.00144955,134.21,134.19,1.73789]
[1767527532153,1.81722014,134.25,134.19,1.73789]
[1767527533360,0.04812889,134.23,134.19,1.73789]
[1767527535460,1.86534903,134.23,134.18,0.05595328]
[1767527536157,1.86534903,134.23,134.18,1.79384328]
[1767527536549,1.86534903,134.23,134.18,0.05595328]
[1767527539851,72.34,134.22,134.18,1.79384328]
[1767527540667,72.34,134.22,134.19,6.7097]
[1767527542963,72.34,134.22,134.18,8.50414328]
[1767527544661,1.81722014,134.21,134.13,7.445]
[1767527544851,1.81722014,134.19,134.1,1.73789]
[1767527546261,0.05607614,134.16,134.1,1.73789]
[1767527546455,72.4,134.15,134.12,8.45109]
[1767527547164,72.4,134.15,134.12,1.73789]
[1767527547350,72.4,134.15,134.12,1.78713501]
[1767527549367,72.29867832,134.15,134.12,1.78713501]
[1767527549976,1.81722014,134.21,134.14,1.73789]
[1767527550274,72.44,134.2,134.14,1.73789]
[1767527551172,0.05377252,134.18,134.14,1.73789]
[1767527551373,0.05377252,134.18,134.16,0.04694918]
[1767527551574,0.05377252,134.18,134.16,1.8926956]
[1767527551870,0.05377252,134.18,134.16,1.84574642]
[1767527552059,72.44,134.2,134.17,1.84574642]
[1767527553567,72.52940938,134.2,134.18,1.88257781]
[1767527553766,70.6346563,134.2,134.18,1.88257781]
[1767527553964,1.89378203,134.25,134.15,6.7118]
[1767527554171,74.37378203,134.24,134.13,104.4184]
[1767527554366,1.89378203,134.23,134.13,104.4184]
[1767527554770,0.0563055,134.19,134.13,104.4184]
[1767527554964,0.0563055,134.19,134.16,6.7113]
[1767527557874,72.52,134.18,134.13,6.7128]
[1767527561572,63.20199675,134.18,134.13,6.7128]
[1767527561765,65.09577878,134.18,134.13,6.7128]
[1767527562677,63.20199675,134.18,134.13,6.7128]
[1767527564478,1.89378203,134.17,134.13,6.7128]
[1767527566866,1.89378203,134.17,134.12,6.7133]
[1767527567482,0.04815428,134.16,134.12,6.7133]
[1767527567882,0.04815428,134.16,134.13,0.05317825]
[1767527569690,0.04815428,134.16,134.14,6.7122]
[1767527571395,53.93225293,134.18,134.14,6.7122]
[1767527572597,0.04732968,134.17,134.15,6.7119]
[1767527574698,0.04732968,134.17,134.14,6.7121]
[1767527574998,0.04732968,134.17,134.13,0.05317825]
[1767527575397,0.04732968,134.17,134.15,6.7115]
[1767527581499,1.86763945,134.23,134.15,1.5]
[1767527581704,74.58763945,134.23,134.14,104.4104]
[1767527581903,74.58763945,134.23,134.19,6.7098]
[1767527582592,0.05694493,134.22,134.19,6.7098]
[1767527583700,0.05694493,134.22,134.19,6.76554632]
[1767527585009,1.92458438,134.22,134.19,0.05574632]
[1767527587415,1.92458438,134.22,134.17,6.7104]
[1767527587914,72.76,134.21,134.17,6.7104]
[1767527588207,0.05694493,134.22,134.18,6.7102]
[1767527588412,72.76,134.21,134.18,6.7102]
[1767527588814,72.8101384,134.21,134.18,6.7102]
[1767527589612,72.8101384,134.21,134.15,104.4042]
[1767527590016,22.35,134.3,134.16,104.3977]
[1767527590017,1.86763945,134.29,134.16,104.3977]
[1767527590203,1.86763945,134.27,134.17,104.3909]
[1767527590914,1.86763945,134.27,134.22,6.7082]
[1767527591117,72.8,134.26,134.22,6.7082]
[1767527591417,72.85689894,134.26,134.23,6.7077]
[1767527591615,72.85689894,134.26,134.23,6.75937425]
[1767527593512,74.72453839,134.26,134.23,0.05167425]
[1767527593710,74.72453839,134.26,134.17,104.3909]
[1767527594017,74.66763945,134.26,134.18,104.382]
[1767527594214,72.8,134.26,134.19,104.3762]
[1767527594720,1.86763945,134.3,134.21,104.3604]
[1767527595013,72.82,134.29,134.21,104.3604]
[1767527595211,72.82,134.29,134.23,6.7076]
[1767527595610,74.68763945,134.29,134.23,6.7076]
[1767527598713,1.86763945,134.28,134.2,62.0]
[1767527598914,1.86763945,134.28,134.21,6.7084]
[1767527601121,1.86763945,134.28,134.22,6.7082]
[1767527601318,1.86763945,134.28,134.19,104.3748]
[1767527601513,1.86763945,134.28,134.23,6.7078]
[1767527603118,1.86763945,134.28,134.19,104.3748]
[1767527603817,1.86763945,134.28,134.22,6.7083]
[1767527604115,1.86763945,134.28,134.18,104.3786]
[1767527605725,1.86763945,134.28,134.21,6.7088]
[1767527613731,1.86763945,134.28,134.22,6.7083]
[1767527615228,1.86763945,134.28,134.23,6.7078]
[1767527615433,2.04265479,134.3,134.2,104.3639]
[1767527615741,72.96,134.29,134.2,104.3639]
[1767527616327,75.00265479,134.29,134.2,104.3639]
[1767527617135,75.00265479,134.29,134.23,6.7076]
[1767527617338,2.04265479,134.28,134.23,6.7076]
[1767527624838,2.04265479,134.28,134.22,6.7083]
[1767527626444,72.96,134.29,134.22,6.7083]
[1767527628437,75.00265479,134.29,134.22,6.7083]
[1767527629746,73.08,134.28,134.23,6.7077]
[1767527633653,73.08,134.28,134.24,6.7072]
[1767527636347,63.76811752,134.28,134.24,6.7072]
[1767527637048,73.14,134.27,134.24,6.7072]
[1767527646450,63.82919795,134.27,134.24,6.7072]
[1767527650855,51.83729795,134.27,134.25,6.7068]
[1767527651058,2.04265479,134.29,134.25,6.7068]
[1767527651263,2.04265479,134.29,134.22,104.3515]
[1767527652573,2.04265479,134.29,134.25,6.7065]
[1767527652757,73.24,134.3,134.22,122.8675744]
[1767527652958,73.24,134.3,134.23,18.5160744]
[1767527653161,73.24,134.3,134.22,122.8675744]
[1767527653567,73.24,134.3,134.26,6.7062]
[1767527654658,2.12833601,134.38,134.24,122.8500744]
[1767527654953,2.12833601,134.36,134.24,122.8500744]
[1767527656266,2.12833601,134.36,134.24,104.334]
[1767527656656,2.12833601,134.36,134.27,6.7054]
[1767527657566,2.12833601,134.36,134.28,6.7052]
[1767527658063,2.12833601,134.34,134.28,6.7052]
[1767527659164,2.12833601,134.34,134.29,6.7048]
[1767527659563,2.12833601,134.34,134.26,104.3184]
[1767527660569,2.12833601,134.34,134.26,126.65416172]
[1767527661578,2.12833601,134.34,134.29,6.7047]
[1767527666580,75.42833601,134.35,134.3,6.7044]
[1767527667776,2.12833601,134.34,134.3,6.7044]
[1767527667983,2.12833601,134.34,134.26,126.65416172]
[1767527669779,2.12833601,134.34,134.29,6.7048]
[1767527673687,2.29350328,134.33,134.24,6.7074]
[1767527676184,2.29350328,134.33,134.25,6.7067]
[1767527677489,2.29350328,134.32,134.21,217.38855364]
[1767527678590,2.29350328,134.32,134.24,6.7074]
[1767527681487,2.29350328,134.32,134.23,104.3436]
[1767527682589,2.29350328,134.32,134.26,6.7062]
[1767527688890,2.29350328,134.32,134.27,6.7058]
[1767527691784,73.56,134.31,134.27,6.7058]
[1767527691989,75.85350328,134.31,134.27,6.7058]
[1767527693498,75.85350328,134.31,134.26,6.7063]
[1767527695804,2.29350328,134.36,134.25,104.3297]
[1767527696005,6.7013,134.37,134.25,104.3297]
[1767527696006,2.29350328,134.34,134.25,104.3297]
[1767527696797,2.29350328,134.34,134.28,6.7049]
[1767527709104,73.6,134.35,134.28,6.7049]
[1767527709504,75.80175116,134.35,134.28,6.7049]
[1767527711408,22.35,134.4,134.26,104.3196]
[1767527711409,2.20175116,134.4,134.26,104.3196]
[1767527711602,22.35,134.41,134.25,104.3297]
[1767527711603,2.20175116,134.38,134.25,104.3297]
[1767527712006,2.20175116,134.37,134.29,6.7048]
[1767527715211,2.20175116,134.35,134.29,6.7048]
[1767527730018,0.05691927,134.33,134.29,6.7048]
[1767527730220,2.20175116,134.35,134.29,6.7048]
[1767527751448,73.74,134.36,134.3,6.7043]
[1767527751746,76.13655489,134.36,134.3,6.7043]
[1767527753247,76.13655489,134.36,134.3,20.65258811]
[1767527753453,2.39655489,134.35,134.3,20.65258811]
[1767527753749,73.74,134.36,134.3,20.65258811]
[1767527754154,73.74,134.36,134.3,22.52058206]
[1767527754340,73.74,134.36,134.32,0.04845174]
[1767527755749,76.13655489,134.36,134.32,0.04845174]
[1767527757654,2.39655489,134.35,134.32,0.04845174]
[1767527763457,2.44357708,134.35,134.32,0.04845174]
[1767527763757,73.74,134.36,134.32,0.04845174]
[1767527765457,0.05647775,134.35,134.32,0.04845174]
[1767527765660,2.54216041,134.35,134.32,0.04845174]
[1767527771061,74.16,134.34,134.32,0.04845174]
[1767527773568,64.85227481,134.34,134.32,0.04845174]
[1767527783569,55.54465893,134.34,134.32,0.04845174]
[1767527784972,58.03034159,134.34,134.32,0.04845174]
[1767527793584,48.72272121,134.34,134.32,0.04845174]
[1767527798085,46.23703855,134.34,134.32,0.04845174]
[1767527803598,36.92943986,134.34,134.32,0.04845174]
[1767527811504,2.73737361,134.35,134.32,0.04845174]
[1767527811708,77.21737361,134.35,134.32,0.04845174]
[1767527814110,2.73737361,134.35,134.32,0.04845174]
[1767527814316,77.21737361,134.35,134.32,0.04845174]
[1767527815515,2.68089586,134.37,134.32,0.04845174]
[1767527815813,2.68089586,134.37,134.31,16.55946209]
[1767527816412,2.68089586,134.37,134.33,6.7026]
[1767527816915,2.68089586,134.37,134.34,0.05662154]
[1767527818310,74.5,134.38,134.34,0.05662154]
[1767527818911,74.5,134.38,134.34,6.75892154]
[1767527819114,77.18089586,134.38,134.34,6.75892154]
[1767527827712,74.5,134.38,134.34,9.53268653]
[1767527828114,74.5,134.38,134.35,6.7017]
[1767527829622,65.1961812,134.38,134.35,9.47546499]
[1767527829817,2.59661901,134.4,134.35,9.47546499]
[1767527830017,77.19661901,134.4,134.35,9.47546499]
[1767527830217,2.59661901,134.42,134.36,2.77376499]
[1767527830419,77.19661901,134.42,134.36,2.77376499]
[1767527830622,77.19661901,134.42,134.38,0.04725956]
[1767527831627,2.59661901,134.41,134.35,6.7015]
[1767527832815,2.59661901,134.41,134.37,0.05286373]
[1767527833727,0.05037229,134.4,134.37,0.05286373]
[1767527840729,2.6469913,134.4,134.37,0.05286373]
[1767527854352,0.05037229,134.4,134.37,0.05286373]
[1767527855653,0.05037229,134.4,134.37,6.75376373]
[1767527859154,2.72953416,134.4,134.37,0.05286373]
[1767527871272,0.12964858,134.4,134.37,0.05286373]
[1767527879779,0.12964858,134.4,134.37,6.75376373]
[1767527881075,0.00602009,134.4,134.37,6.75376373]
[1767527881580,74.6,134.42,134.37,6.75376373]
[1767527883183,77.46316483,134.42,134.37,6.75376373]
[1767527883378,2.86316483,134.41,134.37,6.75376373]
[1767527884695,2.86316483,134.43,134.38,9.56692259]
[1767527884985,2.86316483,134.43,134.38,2.86672259]
[1767527885388,2.86316483,134.43,134.39,13.93937785]
[1767527885588,2.86316483,134.43,134.39,20.63917785]
[1767527886188,2.86316483,134.43,134.4,0.04976217]
[1767527886479,0.04992939,134.42,134.4,0.04976217]
[1767527891191,0.00649867,134.43,134.4,0.04976217]
[1767527891691,74.98,134.46,134.4,0.04976217]
[1767527893191,1.25949153,134.45,134.4,0.04976217]
[1767527898603,1.25949153,134.45,134.4,6.74906217]
[1767527899101,1.25949153,134.45,134.4,0.04976217]
[1767527900704,2.73949153,134.45,134.4,0.04976217]
[1767527900894,1.30813933,134.44,134.4,0.04976217]
[1767527911302,1.31658094,134.43,134.37,13.93937785]
[1767527911498,1.31658094,134.43,134.34,16.89097453]
[1767527912599,1.31658094,134.43,134.36,6.7013]
[1767527913308,1.31658094,134.43,134.37,6.7009]
[1767527914406,76.49658094,134.43,134.39,6.6995]
[1767527915000,76.49658094,134.43,134.4,0.05433449]
[1767527915504,1.3418879,134.42,134.38,6.7004]
[1767527915909,1.3418879,134.42,134.36,20.64077785]
[1767527916114,1.3418879,134.42,134.36,6.7014]
[1767527916810,1.3418879,134.42,134.36,2.86923351]
[1767527917315,76.5418879,134.42,134.37,2.86923351]
[1767527918715,76.5418879,134.42,134.38,6.7002]
[1767527924420,76.5418879,134.42,134.37,2.86923351]
[1767527924618,1.32746347,134.41,134.36,20.64027785]
[1767527924920,1.32746347,134.41,134.35,16.80861136]
[1767527925722,1.32746347,134.41,134.35,23.51031136]
[1767527927622,1.32746347,134.41,134.36,2.86923351]
[1767527933422,1.32746347,134.41,134.36,16.80861136]
[1767527937928,1.32746347,134.41,134.36,23.50991136]
[1767527944032,1.32746347,134.41,134.37,6.7009]
[1767527949242,22.36,134.44,134.37,6.7009]
[1767527951254,0.09992757,134.43,134.37,6.7009]
[1767527951449,75.53992757,134.42,134.37,6.7009]
[1767527955153,75.53992757,134.42,134.37,20.64027785]
[1767527957560,0.1245489,134.41,134.35,2.83491133]
[1767527958658,0.1245489,134.41,134.36,6.7014]
[1767527960058,75.5,134.41,134.38,9.53521133]
[1767527960252,75.37524963,134.41,134.38,9.53521133]
[1767527960451,75.37524963,134.41,134.38,2.83491133]
[1767527963266,75.37524963,134.41,134.36,9.53581133]
[1767527963461,75.37524963,134.41,134.37,2.83491133]
[1767527970569,75.56697197,134.41,134.35,3.12430328]
[1767527970761,0.19172234,134.4,134.35,3.12430328]
[1767527970965,0.00095415,134.4,134.35,3.12430328]
[1767527971568,0.00095415,134.4,134.33,3.12430328]
[1767527972273,0.00095415,134.4,134.35,0.04827953]
[1767527975475,22.36,134.39,134.31,2.98664927]
[1767527975972,6.6984,134.42,134.34,2.98664927]
[1767527976177,75.62,134.41,134.34,2.98664927]
[1767527976878,75.62,134.41,134.36,0.0528822]
[1767527977077,22.36,134.4,134.36,0.0528822]
[1767527977681,75.62,134.41,134.36,0.0528822]
[1767527983773,0.02463991,134.4,134.36,0.0528822]
[1767528001688,0.02463991,134.4,134.34,2.98664927]
[1767528001889,0.10707851,134.38,134.32,3.27669381]
[1767528002088,0.10707851,134.36,134.3,17.19776401]
[1767528002290,0.10707851,134.36,134.3,3.27669381]
[1767528004103,22.36,134.35,134.3,3.27669381]
[1767528004693,0.10707851,134.36,134.3,3.27669381]
[1767528004891,22.45707851,134.36,134.3,3.27669381]
[1767528005697,22.45707851,134.36,134.3,9.98109381]
[1767528006707,22.45707851,134.36,134.32,0.05158004]
[1767528007009,75.84,134.35,134.32,0.05158004]
[1767528007197,46.83259253,134.35,134.32,3.32827385]
[1767528007399,78.95831997,134.4,134.32,1.53158004]
[1767528007606,78.95831997,134.4,134.32,0.05158004]
[1767528007607,3.09831997,134.39,134.32,0.05158004]
[1767528008614,3.09831997,134.39,134.32,6.75458004]
[1767528009008,0.05602467,134.37,134.32,6.75458004]
[1767528010910,3.15434464,134.37,134.32,6.75458004]
[1767528011203,3.15434464,134.37,134.32,0.05158004]
[1767528011613,75.88,134.36,134.32,0.05158004]
[1767528014302,78.97831997,134.36,134.32,0.05158004]
[1767528034232,0.05602467,134.37,134.32,0.05158004]
[1767528034527,76.09602467,134.37,134.32,13.97265024]
[1767528035620,76.09602467,134.37,134.34,6.7023]
[1767528036730,76.09602467,134.37,134.33,6.7028]
[1767528042640,78.9456208,134.37,134.33,6.7028]
[1767528044336,69.63990505,134.37,134.33,6.7028]
[1767528049440,2.84959613,134.36,134.32,13.97265024]
[1767528050338,2.84959613,134.36,134.32,20.67605024]
[1767528054344,60.33418161,134.37,134.32,20.67605024]
[1767528056345,63.18377774,134.37,134.32,20.67605024]
[1767528056746,2.84959613,134.36,134.32,20.67605024]
[1767528059647,2.84959613,134.36,134.32,0.05158004]
[1767528063850,2.84959613,134.36,134.32,6.75498004]
[1767528066149,2.84959613,134.36,134.32,20.67605024]
[1767528067161,2.57974365,134.38,134.32,13.97265024]
[1767528067351,2.57974365,134.38,134.33,13.9210702]
[1767528067846,2.57974365,134.38,134.34,0.05221988]
[1767528068351,2.57974365,134.4,134.34,13.97329008]
[1767528068552,2.57974365,134.4,134.34,20.67549008]
[1767528070252,2.57974365,134.4,134.35,6.7014]
[1767528070448,2.57974365,134.4,134.34,13.97329008]
[1767528071354,2.57974365,134.4,134.35,6.7018]
[1767528072252,2.57974365,134.44,134.34,118.22949008]
[1767528072447,2.57974365,134.44,134.36,13.9210702]
[1767528072954,2.57974365,134.44,134.39,0.05659454]
[1767528078751,78.87974365,134.46,134.39,0.05659454]
[1767528079156,2.57974365,134.45,134.39,0.05659454]
[1767528079560,2.57974365,134.45,134.4,6.6994]
[1767528079762,2.57974365,134.45,134.39,0.05659454]
[1767528081566,2.57974365,134.45,134.39,6.75639454]
[1767528083370,78.89974365,134.45,134.39,0.05659454]
[1767528084572,78.89974365,134.45,134.41,6.6987]
[1767528089168,78.89974365,134.45,134.4,6.6992]